bitfinex-derivatives/quotes_SOLF0:USTF0_20250626
["timestamp","ask_amount","ask_price","bid_price","bid_amount"]
[1750903396592,10.48155803,145.65,145.59,14.71476253]
[1750903396799,5.65328412,145.63,145.57,6.26705558]
[1750903396994,37.72,145.62,145.57,6.26705558]
[1750903397494,37.72,145.62,145.56,6.26705558]
[1750903397795,5.65328412,145.61,145.56,6.26705558]
[1750903398088,5.65328412,145.59,145.54,6.26705558]
[1750903398294,37.72,145.58,145.53,6.26705558]
[1750903399396,37.72,145.58,145.53,13.13445558]
[1750903399596,37.72,145.58,145.54,6.26705558]
[1750903400300,37.72,145.58,145.55,6.26705558]
[1750903400698,37.72,145.61,145.55,6.26705558]
[1750903400902,37.72,145.61,145.58,6.26705558]
[1750903401103,40.1031,145.64,145.58,6.26705558]
[1750903401400,37.72,145.64,145.58,11.9203397]
[1750903401902,44.5827,145.64,145.6,6.8642]
[1750903402100,37.72,145.64,145.58,6.26705558]
[1750903402498,6.8632,145.63,145.58,13.13215558]
[1750903403710,6.8634,145.62,145.58,13.13215558]
[1750903406009,6.8634,145.62,145.59,6.26705558]
[1750903406612,6.863,145.63,145.59,6.26705558]
[1750903409220,6.863,145.63,145.6,6.26705558]
[1750903409519,6.8634,145.62,145.59,6.26705558]
[1750903410012,6.8634,145.62,145.6,6.26705558]
[1750903410615,6.8631,145.63,145.6,6.26705558]
[1750903412015,37.72,145.64,145.62,6.26705558]
[1750903412212,37.72,145.64,145.61,6.26705558]
[1750903414519,37.72,145.64,145.62,6.26705558]
[1750903415120,6.8629,145.63,145.62,6.26705558]
[1750903415418,37.72,145.64,145.62,6.26705558]
[1750903416018,37.72,145.67,145.62,6.26705558]
[1750903416213,6.862,145.65,145.62,6.26705558]
[1750903416411,6.862,145.65,145.63,6.26705558]
[1750903416611,37.72,145.67,145.63,6.26705558]
[1750903416810,44.5813,145.67,145.64,6.26705558]
[1750903417013,41.11029686,145.77,145.66,9.65735244]
[1750903417221,6.8576,145.75,145.7,9.63922593]
[1750903417420,3.38818408,145.76,145.7,6.24892907]
[1750903417620,3.38818408,145.76,145.69,6.24892907]
[1750903417815,6.858,145.74,145.69,6.24892907]
[1750903418724,6.8584,145.73,145.68,6.24892907]
[1750903419820,37.72,145.73,145.67,8.52882907]
[1750903420017,43.36718473,145.73,145.66,6.24892907]
[1750903420417,5.64718473,145.71,145.64,43.96892907]
[1750903420619,5.64718473,145.71,145.64,6.24892907]
[1750903421017,5.64718473,145.71,145.65,6.24892907]
[1750903421520,5.64718473,145.71,145.64,6.24892907]
[1750903422325,6.8609,145.68,145.64,6.24892907]
[1750903422629,5.64718473,145.71,145.64,6.24892907]
[1750903423510,6.8609,145.68,145.64,6.24892907]
[1750903424124,6.861,145.67,145.64,6.24892907]
[1750903425522,6.8607,145.68,145.64,6.24892907]
[1750903426023,6.8607,145.68,145.65,6.24892907]
[1750903426914,6.8607,145.68,145.64,6.24892907]
[1750903427918,37.72,145.73,145.65,11.8961138]
[1750903428520,6.8592,145.71,145.67,5.64718473]
[1750903429024,6.8592,145.71,145.67,12.50808473]
[1750903430632,37.72,145.73,145.67,12.50808473]
[1750903431127,37.72,145.73,145.67,5.64718473]
[1750903431321,6.8592,145.71,145.67,5.64718473]
[1750903432628,6.8592,145.71,145.67,12.50808473]
[1750903433237,6.8592,145.71,145.67,5.64718473]
[1750903433726,6.8597,145.7,145.67,5.64718473]
[1750903434035,37.72,145.73,145.66,125.0]
[1750903434231,6.8604,145.69,145.65,37.4]
[1750903434428,6.8604,145.69,145.65,44.2619]
[1750903436222,40.1649,145.73,145.67,5.64718473]
[1750903436223,6.8594,145.71,145.67,5.64718473]
[1750903436427,6.8594,145.71,145.67,8.02518473]
[1750903436732,6.8588,145.72,145.67,14.88608473]
[1750903437234,37.72,145.73,145.67,14.88608473]
[1750903437432,6.8595,145.71,145.67,8.02518473]
[1750903437939,6.8588,145.72,145.67,14.88578473]
[1750903439537,6.8592,145.71,145.67,14.88578473]
[1750903440234,6.8592,145.71,145.68,3.3886659]
[1750903440430,6.8588,145.72,145.68,10.2490659]
[1750903440627,37.72,145.73,145.68,3.3886659]
[1750903440828,6.8591,145.71,145.68,3.3886659]
[1750903442437,37.72,145.73,145.68,3.3886659]
[1750903443636,37.72,145.73,145.67,2.378]
[1750903443832,37.72,145.73,145.64,6.24892907]
[1750903444031,3.3886659,145.67,145.61,125.0]
[1750903444235,6.8623,145.65,145.6,131.24892907]
[1750903444437,3.3886659,145.65,145.61,6.24892907]
[1750903444627,3.3886659,145.63,145.57,6.24892907]
[1750903444828,37.4,145.62,145.55,16.50409497]
[1750903445032,37.4,145.62,145.55,9.63759497]
[1750903445237,6.8644,145.6,145.56,13.11512907]
[1750903445539,37.4,145.62,145.56,13.11512907]
[1750903445934,37.4,145.65,145.59,3.3886659]
[1750903446242,37.4,145.65,145.6,3.3886659]
[1750903446635,6.8628,145.64,145.6,3.3886659]
[1750903446840,40.7886659,145.65,145.59,6.24892907]
[1750903447039,40.7886659,145.65,145.58,9.63759497]
[1750903447234,40.7886659,145.65,145.59,6.24892907]
[1750903447430,40.7886659,145.65,145.59,13.11362907]
[1750903447637,40.7886659,145.65,145.59,6.24892907]
[1750903448339,6.8632,145.63,145.59,6.24892907]
[1750903448639,37.4,145.65,145.58,11.90388008]
[1750903448944,43.05495101,145.65,145.58,6.24892907]
[1750903449347,6.8637,145.62,145.58,6.24892907]
[1750903450544,6.8637,145.62,145.58,13.11412907]
[1750903451343,37.4,145.65,145.59,6.24892907]
[1750903451536,37.4,145.68,145.6,5.65495101]
[1750903451731,6.8618,145.66,145.61,6.8634]
[1750903452337,6.8612,145.67,145.62,6.8633]
[1750903452735,37.4,145.68,145.61,6.24892907]
[1750903453143,6.8615,145.66,145.61,13.11242907]
[1750903453538,37.4,145.68,145.61,6.24892907]
[1750903455046,6.8615,145.66,145.61,6.24892907]
[1750903455645,37.4,145.68,145.61,6.24892907]
[1750903455646,6.8621,145.65,145.61,6.24892907]
[1750903456444,5.65495101,145.67,145.6,8.50012907]
[1750903456836,5.65495101,145.67,145.59,6.24892907]
[1750903458934,2.3514,145.66,145.59,6.24892907]
[1750903459550,6.8625,145.64,145.59,13.11362907]
[1750903459845,2.3514,145.66,145.59,13.11362907]
[1750903460041,6.863,145.63,145.59,6.24892907]
[1750903460245,2.3514,145.66,145.6,6.24892907]
[1750903460441,2.3514,145.66,145.59,6.24892907]
[1750903460642,2.3514,145.66,145.6,6.24892907]
[1750903460843,2.3514,145.66,145.6,13.11282907]
[1750903460844,6.862,145.65,145.6,13.11282907]
[1750903462249,43.05495101,145.68,145.6,6.24892907]
[1750903462546,43.05495101,145.68,145.59,6.24892907]
[1750903462547,5.65495101,145.66,145.59,6.24892907]
[1750903464548,6.863,145.63,145.59,6.24892907]
[1750903465254,6.863,145.63,145.59,13.11362907]
[1750903466556,6.8634,145.62,145.59,6.24892907]
[1750903466849,5.65495101,145.66,145.59,6.24892907]
[1750903467355,5.65495101,145.66,145.58,6.24892907]
[1750903468150,5.65495101,145.66,145.59,6.24892907]
[1750903468351,6.8628,145.64,145.59,13.11332907]
[1750903468553,5.65495101,145.66,145.59,6.24892907]
[1750903469144,5.65495101,145.64,145.58,6.24892907]
[1750903469348,37.26,145.63,145.58,6.24892907]
[1750903469543,6.8643,145.61,145.57,8.64542907]
[1750903470047,37.26,145.63,145.57,8.64542907]
[1750903470248,40.65430125,145.63,145.57,8.64542907]
[1750903470645,6.8638,145.62,145.57,8.64542907]
[1750903470854,37.26,145.63,145.57,8.64542907]
[1750903471060,37.26,145.63,145.57,15.51112907]
[1750903471248,37.26,145.63,145.58,6.24892907]
[1750903471758,6.8635,145.62,145.58,13.11412907]
[1750903471952,37.26,145.63,145.59,6.24892907]
[1750903472254,44.1231,145.63,145.59,6.24892907]
[1750903472445,44.1231,145.63,145.59,13.11372907]
[1750903474054,37.26,145.63,145.6,6.8642]
[1750903474354,40.65430125,145.66,145.59,6.24892907]
[1750903474745,6.8627,145.64,145.6,6.24892907]
[1750903475151,40.65430125,145.66,145.6,6.24892907]
[1750903476258,6.8628,145.64,145.6,13.11292907]
[1750903478757,6.8621,145.65,145.61,6.8638]
[1750903479959,6.8625,145.64,145.61,6.8638]
[1750903480455,2.3396,145.69,145.62,3.39430125]
[1750903480658,39.5052,145.7,145.65,6.24892907]
[1750903480659,37.26,145.7,145.65,6.24892907]
[1750903481158,37.26,145.74,145.66,9.64323032]
[1750903481359,37.26,145.74,145.68,3.39430125]
[1750903481955,6.8583,145.73,145.68,3.39430125]
[1750903482164,37.26,145.74,145.67,13.10992907]
[1750903482358,37.26,145.74,145.67,9.64323032]
[1750903482661,6.8591,145.72,145.67,16.50413032]
[1750903482857,37.26,145.74,145.67,16.50413032]
[1750903483256,37.26,145.74,145.68,6.24892907]
[1750903484166,6.8586,145.73,145.68,6.24892907]
[1750903484663,6.8587,145.72,145.67,6.24892907]
[1750903486568,37.26,145.74,145.68,3.39430125]
[1750903486771,37.26,145.74,145.7,3.39430125]
[1750903486964,37.36,145.77,145.7,3.39430125]
[1750903487865,6.8573,145.75,145.71,6.8589]
[1750903488365,37.36,145.77,145.71,6.8589]
[1750903488566,6.8573,145.75,145.71,6.8589]
[1750903488769,37.36,145.77,145.7,3.39430125]
[1750903488967,630.32,145.79,145.72,3.39430125]
[1750903489157,37.36,145.79,145.74,3.39430125]
[1750903489357,37.36,145.79,145.74,10.25170125]
[1750903489570,6.8553,145.8,145.76,3.39430125]
[1750903489762,43.02750125,145.83,145.76,3.39430125]
[1750903490267,43.02750125,145.83,145.71,10.71390542]
[1750903490268,6.8554,145.79,145.75,3.39430125]
[1750903491471,43.02750125,145.83,145.75,3.39430125]
[1750903491662,3.39430125,145.81,145.73,3.39430125]
[1750903492166,6.8567,145.77,145.73,3.39430125]
[1750903492564,37.36,145.79,145.73,3.39430125]
[1750903492762,6.8571,145.76,145.73,3.39430125]
[1750903493174,37.36,145.79,145.73,3.39430125]
[1750903493377,6.8573,145.75,145.73,3.39430125]
[1750903494075,6.8573,145.75,145.71,127.382]
[1750903494266,6.8573,145.75,145.72,3.39430125]
[1750903494768,6.8578,145.74,145.71,2.382]
[1750903494965,40.75430125,145.79,145.71,2.382]
[1750903495774,40.75430125,145.79,145.71,5.77630125]
[1750903497277,6.8579,145.74,145.71,5.77630125]
[1750903497475,40.75430125,145.79,145.71,5.77630125]
[1750903497673,40.75430125,145.79,145.7,162.36]
[1750903497674,3.39430125,145.77,145.7,37.36]
[1750903497973,3.39430125,145.77,145.69,128.39430125]
[1750903498368,6.8581,145.74,145.69,128.39430125]
[1750903498574,3.39430125,145.77,145.68,6.888]
[1750903498575,3.39430125,145.77,145.71,3.39430125]
[1750903498764,2.2956,145.78,145.71,3.39430125]
[1750903498969,6.8576,145.75,145.71,3.39430125]
[1750903500078,2.2956,145.78,145.71,3.39430125]
[1750903500289,2.2956,145.78,145.69,3.39430125]
[1750903500290,3.39430125,145.77,145.69,3.39430125]
[1750903501082,6.8579,145.74,145.69,10.25410125]
[1750903501282,6.8579,145.74,145.69,135.25410125]
[1750903501781,6.8579,145.74,145.7,6.8596]
[1750903502881,6.8579,145.74,145.71,3.39430125]
[1750903503081,6.8574,145.75,145.71,3.39430125]
[1750903503582,40.75430125,145.79,145.71,3.39430125]
[1750903503787,40.75430125,145.79,145.71,128.39430125]
[1750903504081,6.8566,145.77,145.72,6.8587]
[1750903504787,6.8569,145.76,145.71,172.59330125]
[1750903506187,3.39430125,145.75,145.71,125.0]
[1750903506385,40.73430125,145.75,145.68,6.888]
[1750903506979,37.34,145.75,145.69,3.39430125]
[1750903507486,37.34,145.75,145.7,6.8596]
[1750903507679,3.39430125,145.77,145.7,6.8596]
[1750903508484,37.34,145.78,145.71,10.25340125]
[1750903508884,6.8569,145.76,145.71,10.25340125]
[1750903509782,37.34,145.78,145.71,3.39430125]
[1750903509988,3.39430125,145.77,145.69,3.39430125]
[1750903510191,3.39430125,145.77,145.68,131.888]
[1750903510192,2.359,145.77,145.68,6.888]
[1750903510381,6.8586,145.73,145.68,6.888]
[1750903510580,3.39430125,145.75,145.68,6.888]
[1750903511484,5.75330125,145.77,145.69,3.39430125]
[1750903512083,6.8576,145.75,145.7,6.8595]
[1750903512986,6.8578,145.74,145.69,10.25430125]
[1750903513185,5.75330125,145.77,145.69,3.39430125]
[1750903513589,37.34,145.78,145.71,3.39430125]
[1750903513887,37.34,145.78,145.73,3.39430125]
[1750903514197,6.8566,145.77,145.73,3.39430125]
[1750903515292,6.8566,145.77,145.72,3.39430125]
[1750903515591,2.412,145.82,145.72,3.39430125]
[1750903515592,2.412,145.82,145.75,3.39430125]
[1750903515984,2.412,145.82,145.75,5.64400125]
[1750903516593,6.8549,145.8,145.75,12.50080125]
[1750903516791,2.412,145.82,145.75,5.64400125]
[1750903516993,2.412,145.82,145.77,3.39430125]
[1750903517189,37.48,145.83,145.77,3.39430125]
[1750903517887,44.3339,145.83,145.77,3.39430125]
[1750903518190,37.48,145.83,145.77,3.39430125]
[1750903518387,6.8543,145.82,145.77,10.25050125]
[1750903518995,44.3336,145.83,145.77,10.25050125]
[1750903519793,44.3336,145.83,145.75,2.2497]
[1750903519794,3.39430125,145.81,145.75,2.2497]
[1750903519994,37.48,145.83,145.76,3.39430125]
[1750903520191,37.48,145.83,145.77,3.39430125]
[1750903520883,40.87430125,145.83,145.75,8.49862907]
[1750903521088,3.39430125,145.81,145.75,2.2497]
[1750903521285,37.46,145.86,145.8,3.39430125]
[1750903521487,37.46,145.86,145.81,3.39430125]
[1750903521891,3.39430125,145.85,145.78,6.24892907]
[1750903522186,3.39430125,145.85,145.77,40.85430125]
[1750903522384,3.39430125,145.85,145.77,47.10323032]
[1750903522589,37.46,145.86,145.77,40.85430125]
[1750903522790,6.8539,145.83,145.77,47.71020125]
[1750903523394,6.8541,145.82,145.77,44.3159]
[1750903523795,6.8541,145.82,145.77,37.46]
[1750903524190,6.8546,145.81,145.77,37.46]
[1750903524499,2.288,145.88,145.73,6.24892907]
[1750903524500,3.39430125,145.79,145.73,6.24892907]
[1750903524702,41.2715,145.8,145.72,6.24892907]
[1750903524897,39.04,145.79,145.73,6.8581]
[1750903525101,39.04,145.79,145.72,6.24892907]
[1750903525297,4.81227923,145.8,145.73,9.64323032]
[1750903525504,41.3987,145.82,145.76,6.24892907]
[1750903525701,39.04,145.82,145.76,6.24892907]
[1750903525902,45.8943,145.82,145.76,15.43942907]
[1750903526709,6.8546,145.81,145.76,8.58262907]
[1750903527505,45.8941,145.82,145.76,15.43922907]
[1750903527995,45.8941,145.82,145.77,10.25040125]
[1750903529306,45.8941,145.82,145.77,16.49933032]
[1750903529601,39.04,145.82,145.77,6.24892907]
[1750903529808,3.39430125,145.81,145.76,2.3337]
[1750903530103,39.04,145.82,145.76,2.3337]
[1750903530104,39.04,145.82,145.77,6.24892907]
[1750903531105,42.43430125,145.82,145.76,8.58262907]
[1750903532008,6.855,145.8,145.76,8.58262907]
[1750903533499,39.04,145.82,145.77,6.24892907]
[1750903534105,6.8546,145.81,145.77,6.24892907]
[1750903535009,6.855,145.8,145.76,8.58262907]
[1750903535209,6.855,145.8,145.76,6.24892907]
[1750903535801,6.855,145.8,145.75,52.14602907]
[1750903536001,6.855,145.8,145.76,6.24892907]
[1750903536205,6.8545,145.81,145.76,6.8567]
[1750903536405,6.8545,145.81,145.76,13.10562907]
[1750903537911,3.39430125,145.81,145.76,6.24892907]
[1750903538206,3.39430125,145.81,145.75,6.24892907]
[1750903538511,6.8557,145.79,145.75,6.24892907]
[1750903539111,3.39430125,145.81,145.76,6.24892907]
[1750903540207,6.8555,145.79,145.76,6.24892907]
[1750903540405,6.8555,145.79,145.75,9.64323032]
[1750903540903,6.8555,145.79,145.75,16.50043032]
[1750903541313,6.855,145.8,145.76,6.24892907]
[1750903541507,6.855,145.8,145.75,16.50043032]
[1750903541704,6.8545,145.81,145.77,6.8563]
[1750903542006,6.8545,145.81,145.77,13.10522907]
[1750903543010,39.04,145.82,145.77,9.64323032]
[1750903543207,4.85899185,145.84,145.77,9.64323032]
[1750903543414,39.02,145.85,145.79,9.64323032]
[1750903543906,39.02,145.85,145.8,6.24892907]
[1750903544811,39.02,145.88,145.81,9.64323032]
[1750903545207,6.8521,145.86,145.81,13.10292907]
[1750903545413,43.87736114,145.88,145.81,13.10292907]
[1750903545414,39.02,145.88,145.81,9.64323032]
[1750903545808,6.8519,145.87,145.82,6.8536]
[1750903546115,6.8519,145.87,145.82,13.10252907]
[1750903548314,6.8522,145.86,145.82,6.8536]
[1750903548512,6.8522,145.86,145.81,16.49763032]
[1750903549417,39.02,145.88,145.81,16.49763032]
[1750903550316,39.02,145.88,145.81,9.64323032]
[1750903550317,42.41430125,145.88,145.81,9.64323032]
[1750903550519,42.41430125,145.88,145.8,170.26892907]
[1750903551010,3.39430125,145.86,145.8,170.26892907]
[1750903551216,3.39430125,145.86,145.8,164.02]
[1750903551409,3.39430125,145.86,145.79,6.24892907]
[1750903551613,3.39430125,145.84,145.78,8.55282907]
[1750903551815,42.41430125,145.84,145.78,6.24892907]
[1750903552116,42.41430125,145.84,145.76,6.24892907]
[1750903552117,3.39430125,145.82,145.76,6.24892907]
[1750903552812,42.41430125,145.84,145.76,6.24892907]
[1750903553012,42.41430125,145.84,145.77,6.24892907]
[1750903553611,6.8544,145.81,145.77,6.24892907]
[1750903554011,6.8544,145.81,145.75,11.72620667]
[1750903554012,6.8544,145.81,145.76,6.24892907]
[1750903554418,6.8544,145.81,145.77,6.24892907]
[1750903554915,42.41430125,145.84,145.77,6.24892907]
[1750903555624,6.8548,145.81,145.77,6.24892907]
[1750903556827,3.39430125,145.78,145.75,6.24892907]
[1750903557021,3.39430125,145.78,145.74,6.24892907]
[1750903557231,6.8559,145.78,145.75,6.24892907]
[1750903557826,6.8559,145.78,145.74,6.24892907]
[1750903558032,6.8555,145.79,145.74,6.24892907]
[1750903558219,6.8555,145.79,145.76,6.24892907]
[1750903558925,6.856,145.78,145.75,6.24892907]
[1750903560227,6.856,145.78,145.73,18.58430667]
[1750903560228,6.856,145.78,145.76,6.24892907]
[1750903561221,6.8555,145.79,145.75,6.24892907]
[1750903561422,39.1,145.8,145.76,6.24892907]
[1750903561727,4.86131179,145.82,145.77,6.24892907]
[1750903561924,4.86140875,145.81,145.77,6.24892907]
[1750903562226,44.90270125,145.83,145.76,6.24892907]
[1750903562418,6.8553,145.8,145.76,6.24892907]
[1750903562620,6.8553,145.8,145.77,6.24892907]
[1750903565225,6.8553,145.8,145.76,6.24892907]
[1750903566321,44.90270125,145.83,145.77,6.24892907]
[1750903566522,39.12,145.83,145.77,9.64323032]
[1750903566722,39.12,145.83,145.78,6.24892907]
[1750903566922,43.97477414,145.83,145.78,6.24892907]
[1750903567123,39.12,145.83,145.78,6.24892907]
[1750903567323,43.97477414,145.83,145.78,6.24892907]
[1750903567619,39.12,145.83,145.78,6.24892907]
[1750903568325,42.51430125,145.83,145.77,6.24892907]
[1750903568726,44.92170125,145.83,145.77,6.24892907]
[1750903568920,41.5274,145.83,145.77,9.64323032]
[1750903569228,39.12,145.83,145.78,6.24892907]
[1750903569622,39.12,145.83,145.79,6.24892907]
[1750903569822,39.12,145.86,145.79,9.64323032]
[1750903570027,39.12,145.86,145.8,6.24892907]
[1750903570227,39.12,145.86,145.81,6.24892907]
[1750903570424,39.12,145.86,145.83,6.8534]
[1750903571328,39.12,145.86,145.84,6.853]
[1750903571923,39.12,145.86,145.85,6.8526]
[1750903572428,592.26,145.88,145.85,6.8526]
[1750903572634,592.26,145.88,145.84,6.8529]
[1750903572827,592.26,145.88,145.81,9.64323032]
[1750903572828,4.85748741,145.87,145.81,9.64323032]
[1750903573030,595.65430125,145.88,145.81,9.64323032]
[1750903573232,595.65430125,145.88,145.82,6.24892907]
[1750903574131,595.65430125,145.88,145.84,6.8527]
[1750903574331,595.65430125,145.88,145.82,6.24892907]
[1750903574631,595.65430125,145.88,145.85,6.8525]
[1750903575420,39.1,145.89,145.82,6.24892907]
[1750903575421,39.1,145.89,145.83,3.39430125]
[1750903575820,39.1,145.89,145.82,6.24892907]
[1750903575821,4.87612664,145.9,145.85,3.39430125]
[1750903576231,2.3499,145.91,145.85,3.39430125]
[1750903576432,39.1,145.94,145.87,3.39430125]
[1750903576930,3.39430125,145.93,145.85,9.64323032]
[1750903577132,3.39430125,145.93,145.89,6.8502]
[1750903577330,3.39430125,145.93,145.86,6.24892907]
[1750903577728,3.39430125,145.93,145.86,9.64323032]
[1750903577927,42.49430125,145.94,145.9,6.85]
[1750903578421,4.87198515,145.93,145.9,6.85]
[1750903578622,4.87198515,145.93,145.91,6.8496]
[1750903579035,39.1,145.94,145.88,3.39430125]
[1750903579338,39.1,145.94,145.89,6.18480123]
[1750903580128,39.1,145.94,145.93,6.8488]
[1750903581929,39.1,145.94,145.88,134.57910248]
[1750903581930,39.1,145.94,145.92,6.8492]
[1750903582235,42.49430125,145.94,145.86,3.39430125]
[1750903582439,3.39430125,145.92,145.86,3.39430125]
[1750903582737,3.39430125,145.92,145.86,9.57910248]
[1750903583338,3.39430125,145.92,145.86,3.39430125]
[1750903583932,3.39430125,145.9,145.84,8.43170123]
[1750903584131,3.39430125,145.88,145.82,125.0]
[1750903584630,3.39430125,145.88,145.82,131.18480123]
[1750903585032,3.39430125,145.88,145.85,6.8524]
[1750903585439,10.24550125,145.88,145.84,6.853]
[1750903585740,3.39430125,145.86,145.8,6.18480123]
[1750903585938,3.39430125,145.84,145.79,6.18480123]
[1750903586139,3.39430125,145.84,145.78,2.434]
[1750903586332,38.88,145.86,145.78,5.82830125]
[1750903586538,38.88,145.86,145.8,3.39430125]
[1750903587248,41.2757,145.89,145.82,3.39430125]
[1750903587741,41.2757,145.89,145.82,9.57910248]
[1750903587934,48.1268,145.89,145.84,6.8527]
[1750903588135,48.1268,145.89,145.82,9.57910248]
[1750903588440,48.1268,145.89,145.84,6.8526]
[1750903589344,41.2757,145.89,145.84,6.8526]
[1750903589742,48.1264,145.89,145.84,6.8526]
[1750903590142,41.2757,145.89,145.84,6.8526]
[1750903590645,6.8515,145.88,145.83,10.24770125]
[1750903591944,48.1264,145.89,145.84,6.8529]
[1750903592543,6.8513,145.88,145.84,6.8529]
[1750903593043,6.8513,145.88,145.83,10.24760125]
[1750903593246,6.8513,145.88,145.81,170.06480123]
[1750903593544,6.8513,145.88,145.83,3.39430125]
[1750903594550,6.8513,145.88,145.84,6.853]
[1750903595046,48.1264,145.89,145.84,6.853]
[1750903595551,45.7307,145.89,145.85,6.8524]
[1750903595750,6.8501,145.91,145.85,3.39430125]
[1750903595947,38.88,145.95,145.87,3.39430125]
[1750903596647,3.39430125,145.94,145.87,3.39430125]
[1750903597046,6.8496,145.92,145.88,6.851]
[1750903597838,6.8489,145.93,145.88,6.851]
[1750903598043,3.39430125,145.94,145.87,6.8512]
[1750903598736,6.8496,145.92,145.87,6.8512]
[1750903598938,3.39430125,145.94,145.88,6.851]
[1750903599141,38.88,145.95,145.88,3.39430125]
[1750903600538,6.8489,145.93,145.89,6.8506]
[1750903601047,6.8489,145.93,145.88,6.851]
[1750903601252,38.88,145.95,145.87,3.39430125]
[1750903601754,38.88,145.95,145.88,6.8508]
[1750903601944,3.39430125,145.94,145.87,3.39430125]
[1750903602353,6.8493,145.92,145.87,10.24560125]
[1750903603151,6.8499,145.91,145.87,10.24560125]
[1750903603548,6.8494,145.92,145.87,10.24560125]
[1750903604853,3.39430125,145.92,145.85,128.39430125]
[1750903605056,3.39430125,145.92,145.85,125.0]
[1750903605255,38.86,145.91,145.85,125.0]
[1750903605656,6.8507,145.89,145.85,125.0]
[1750903605858,6.8507,145.89,145.84,9.1188]
[1750903607153,6.8512,145.88,145.84,2.2659]
[1750903607661,6.8516,145.87,145.84,2.2659]
[1750903607859,3.39430125,145.9,145.84,2.2659]
[1750903608756,6.8515,145.88,145.84,2.2659]
[1750903608954,3.39430125,145.9,145.84,2.2659]
[1750903609453,6.8515,145.88,145.84,2.2659]
[1750903611064,3.39430125,145.9,145.84,2.2659]
[1750903611362,8.28623126,145.9,145.84,2.2659]
[1750903612764,3.39430125,145.9,145.84,8.45070123]
[1750903613164,3.39430125,145.9,145.85,6.8521]
[1750903613459,46.00202321,145.91,145.84,11.84500248]
[1750903613663,41.1071,145.91,145.86,3.39430125]
[1750903613864,41.1071,145.91,145.88,6.8511]
[1750903615657,41.1071,145.91,145.89,6.8504]
[1750903615862,38.86,145.91,145.86,3.39430125]
[1750903616060,38.86,145.91,145.86,9.57910248]
[1750903616258,38.86,145.91,145.9,6.8502]
[1750903616764,38.86,145.91,145.86,9.57910248]
[1750903616765,38.38,145.94,145.91,6.8495]
[1750903616962,41.77430125,145.94,145.91,6.8495]
[1750903618967,41.77430125,145.94,145.92,6.8492]
[1750903619155,41.77430125,145.94,145.89,6.18480123]
[1750903619156,38.38,145.94,145.89,6.18480123]
[1750903620161,40.6202,145.97,145.9,3.39430125]
[1750903620372,40.6202,145.97,145.91,6.18480123]
[1750903620760,40.6202,145.97,145.91,9.57910248]
[1750903621553,3.39430125,145.94,145.88,6.18480123]
[1750903621967,3.39430125,145.94,145.92,6.8492]
[1750903622262,3.39430125,145.96,145.92,6.8492]
[1750903622764,3.39430125,145.96,145.93,6.8488]
[1750903623170,3.39430125,145.96,145.9,6.18480123]
[1750903623566,40.6202,145.97,145.9,6.18480123]
[1750903623770,44.01450125,145.97,145.93,6.8484]
[1750903624870,50.86150125,145.97,145.92,6.8491]
[1750903625273,10.24230125,145.95,145.9,6.8499]
[1750903625872,10.24230125,145.95,145.91,6.8497]
[1750903626174,3.39430125,145.95,145.91,6.8497]
[1750903627173,10.24220125,145.95,145.9,6.8501]
[1750903627875,40.6202,145.97,145.88,6.8508]
[1750903627876,3.39430125,145.91,145.88,6.8508]
[1750903628876,38.36,145.92,145.87,3.39430125]
[1750903629072,41.75430125,145.95,145.89,6.18480123]
[1750903629279,2.2402,145.97,145.91,6.18480123]
[1750903629280,5.63450125,145.97,145.91,6.18480123]
[1750903629478,38.36,145.98,145.91,9.57910248]
[1750903629678,38.36,145.98,145.92,6.18480123]
[1750903630380,38.36,145.98,145.96,6.8472]
[1750903630874,41.75430125,145.98,145.92,6.18480123]
[1750903631076,41.75430125,145.98,145.91,6.18480123]
[1750903631273,38.36,145.98,145.92,3.39430125]
[1750903631779,38.36,145.98,145.95,6.8475]
[1750903632576,38.36,145.98,145.92,3.39430125]
[1750903632577,38.36,145.98,145.96,6.8473]
[1750903632876,38.36,145.98,145.92,9.57910248]